fUST/lending_fUST_20250827
["ID","MTS","AMOUNT","RATE_DAILY","PERIOD"]
[381608491,1756295503296,-480.0,0.00023287,2]
[381608492,1756295503305,-480.0,0.00023287,2]
[381608493,1756295503315,-2434.53,0.00023287,2]
[381608494,1756295503325,-512.47,0.00023287,2]
[381608495,1756295503334,-480.0,0.00023287,2]
[381608496,1756295503343,-1080.79,0.00023287,2]
[381608497,1756295503352,-753.46,0.00023287,2]
[381608498,1756295503361,-527.3,0.00023287,2]
[381608499,1756295503371,-480.0,0.00023287,2]
[381608500,1756295503380,-480.0,0.00023287,2]
[381608501,1756295503390,-1150.08,0.00023287,2]
[381608502,1756295503399,-480.0,0.00023287,2]
[381608503,1756295503408,-480.0,0.00023287,2]
[381608504,1756295503418,-480.0,0.00023287,2]
[381608505,1756295503427,-480.0,0.00023287,2]
[381608506,1756295503437,-716.6,0.00023287,2]
[381608507,1756295503447,-480.0,0.00023287,2]
[381608508,1756295503456,-480.0,0.00023287,2]
[381608509,1756295503465,-480.0,0.00023287,2]
[381608510,1756295503474,-480.0,0.00023287,2]
[381608511,1756295503484,-480.0,0.00023287,2]
[381608512,1756295503494,-480.0,0.00023287,2]
[381608513,1756295503503,-480.0,0.00023287,2]
[381608514,1756295503513,-799.46,0.00023287,2]
[381608515,1756295503522,-528.16,0.00023287,2]
[381608516,1756295503531,-480.0,0.00023287,2]
[381608517,1756295503541,-5059.84,0.00023287,2]
[381608518,1756295503550,-518.25,0.00023287,2]
[381608519,1756295503559,-480.0,0.00023287,2]
[381608520,1756295503569,-582.84,0.00023287,2]
[381608521,1756295503578,-556.45,0.00023287,2]
[381608522,1756295503587,-1272.66,0.00023287,2]
[381608523,1756295503597,-684.68,0.00023287,2]
[381608524,1756295503606,-480.0,0.00023287,2]
[381608525,1756295503615,-480.0,0.00023287,2]
[381608526,1756295503625,-2968.96,0.00023287,2]
[381608527,1756295503636,-1725.93494338,0.00023353,2]
[381608528,1756295503646,-4000.12,0.00023446,2]
[381608529,1756295503656,-160.0,0.00023452,2]
[381608530,1756295503666,-12820.26,0.000235,2]
[381608531,1756295503675,-37887.28,0.000235,7]
[381608532,1756295503685,-3102.77,0.000235,7]
[381608533,1756295503694,-973.0,0.0002354,2]
[381608534,1756295503704,-460.85450736,0.0002354,2]
[381608535,1756295503713,-728.82,0.00023561,2]
[381608536,1756295503723,-1786.79,0.00023561,2]
[381608537,1756295503732,-430.23999957,0.00023561,2]
[381608538,1756295503741,-480.0,0.00023561,2]
[381608539,1756295503750,-480.0,0.00023561,2]
[381608540,1756295503759,-480.0,0.00023561,2]
[381608541,1756295503769,-2132.63,0.00023561,2]
[381608542,1756295503778,-567.43,0.00023561,2]
[381608543,1756295503787,-480.0,0.00023561,2]
[381608544,1756295503797,-480.0,0.00023561,2]
[381608545,1756295503807,-480.0,0.00023561,2]
[381608546,1756295503816,-480.0,0.00023561,2]
[381608547,1756295503825,-599.6,0.00023561,2]
[381608548,1756295503835,-480.0,0.00023561,2]
[381608549,1756295503844,-480.0,0.00023561,2]
[381608550,1756295503857,-480.0,0.00023561,2]
[381608551,1756295503867,-555.01,0.00023561,2]
[381608552,1756295503876,-480.0,0.00023561,2]
[381608553,1756295503885,-284.90276295,0.00023561,2]
[381608554,1756295503896,-219.79640218,0.00023561,2]
[381608555,1756295503905,-480.0,0.00023561,2]
[381608556,1756295503915,-480.0,0.00023561,2]
[381608557,1756295503926,-480.0,0.00023561,2]
[381608558,1756295503943,-480.0,0.00023561,2]
[381608559,1756295503956,-608.26,0.00023561,2]
[381608560,1756295503975,-480.0,0.00023561,2]
[381608561,1756295503984,-788.63,0.00023561,2]
[381608562,1756295503993,-733.12,0.00023561,2]
[381608563,1756295504003,-491.85,0.00023561,2]
[381608564,1756295504012,-523.6,0.00023561,2]
[381608565,1756295504022,-4246.52,0.00023561,2]
[381608566,1756295504031,-598.52,0.00023561,2]
[381608567,1756295504041,-972.86,0.00023561,2]
[381608568,1756295504050,-568.62,0.00023561,2]
[381608569,1756295504060,-480.0,0.00023561,2]
[381608570,1756295504070,-480.0,0.00023561,2]
[381608571,1756295504080,-480.0,0.00023561,2]
[381608572,1756295504090,-465.21437068,0.00023561,2]
[381608573,1756295504101,-480.0,0.00023561,2]
[381608574,1756295504111,-573.08,0.00023561,2]
[381608575,1756295504120,-543.52,0.00023561,2]
[381608576,1756295504131,-506.41,0.00023561,2]
[381608577,1756295504140,-480.0,0.00023561,2]
[381608578,1756295504150,-556.45,0.00023561,2]
[381608579,1756295504159,-480.0,0.00023561,2]
[381608580,1756295504168,-705.68,0.00023561,2]
[381608581,1756295504178,-480.0,0.00023561,2]
[381608582,1756295504187,-480.0,0.00023561,2]
[381608583,1756295504196,-480.0,0.00023561,2]
[381608584,1756295504205,-743.34,0.00023561,2]
[381608585,1756295504215,-480.0,0.00023561,2]
[381608586,1756295504224,-614.77,0.00023561,2]
[381608587,1756295504234,-480.0,0.00023561,2]
[381608588,1756295504244,-480.0,0.00023561,2]
[381608589,1756295504254,-480.0,0.00023561,2]
[381608590,1756295504264,-480.0,0.00023561,2]
[381608591,1756295504274,-480.0,0.00023561,2]
[381608592,1756295504283,-1174.5,0.00023561,2]
[381608593,1756295504292,-480.0,0.00023561,2]
[381608594,1756295504301,-480.0,0.00023561,2]
[381608595,1756295504310,-480.0,0.00023561,2]
[381608596,1756295504319,-480.0,0.00023561,2]
[381608597,1756295504329,-480.0,0.00023561,2]
[381608598,1756295504338,-480.0,0.00023561,2]
[381608599,1756295504348,-824.65,0.00023561,2]
[381608600,1756295504357,-480.0,0.00023561,2]
[381608601,1756295504367,-480.0,0.00023561,2]
[381608602,1756295504376,-897.27,0.00023561,2]
[381608603,1756295504385,-771.07,0.00023561,2]
[381608604,1756295504394,-480.0,0.00023561,2]
[381608605,1756295504404,-480.0,0.00023561,2]
[381608606,1756295504413,-480.0,0.00023561,2]
[381608607,1756295504423,-504.69,0.00023561,2]
[381608608,1756295504433,-1094.25,0.00023561,2]
[381608609,1756295504442,-480.0,0.00023561,2]
[381608610,1756295504451,-480.0,0.00023561,2]
[381608611,1756295504461,-480.0,0.00023561,2]
[381608612,1756295504471,-480.0,0.00023561,2]
[381608613,1756295504482,-1176.51,0.00023561,2]
[381608614,1756295504491,-833.03,0.00023561,2]
[381608615,1756295504501,-480.0,0.00023561,2]
[381608616,1756295504510,-483.29,0.00023561,2]
[381608617,1756295504520,-480.0,0.00023561,2]
[381608618,1756295504530,-650.46,0.00023561,2]
[381608619,1756295504540,-536.02,0.00023561,2]
[381608620,1756295504550,-480.0,0.00023561,2]
[381608621,1756295504559,-2316.32,0.00023561,2]
[381608622,1756295504568,-480.0,0.00023561,2]
[381608623,1756295504578,-480.0,0.00023561,2]
[381608624,1756295504587,-633.07,0.00023561,2]
[381608625,1756295504597,-480.0,0.00023561,2]
[381608626,1756295504607,-480.0,0.00023561,2]
[381608627,1756295504616,-480.0,0.00023561,2]
[381608628,1756295504625,-480.0,0.00023561,2]
[381608629,1756295504634,-617.59,0.00023561,2]
[381608630,1756295504643,-692.43,0.00023561,2]
[381608631,1756295504653,-480.0,0.00023561,2]
[381608632,1756295504662,-518.17,0.00023561,2]
[381608633,1756295504671,-604.0,0.00023561,2]
[381608634,1756295504681,-500.09,0.00023561,2]
[381608635,1756295504691,-480.0,0.00023561,2]
[381608636,1756295504701,-480.0,0.00023561,2]
[381608637,1756295504710,-480.0,0.00023561,2]
[381608638,1756295504719,-480.0,0.00023561,2]
[381608639,1756295504729,-480.0,0.00023561,2]
[381608640,1756295504738,-480.0,0.00023561,2]
[381608641,1756295504748,-603.45,0.00023561,2]
[381608642,1756295504758,-480.0,0.00023561,2]
[381608643,1756295504767,-480.0,0.00023561,2]
[381608644,1756295504776,-182.03035522,0.00023561,2]
[381608645,1756295504785,-525.14,0.00023561,2]
[381608646,1756295504795,-480.0,0.00023561,2]
[381608647,1756295504804,-546.45,0.00023561,2]
[381608648,1756295504813,-480.0,0.00023561,2]
[381608649,1756295504823,-480.0,0.00023561,2]
[381608650,1756295504832,-495.46,0.00023561,2]
[381608651,1756295504842,-494.23,0.00023561,2]
[381608652,1756295504855,-480.0,0.00023561,2]
[381608653,1756295504864,-480.0,0.00023561,2]
[381608654,1756295504873,-752.07,0.00023561,2]
[381608655,1756295504882,-522.4,0.00023561,2]
[381608656,1756295504893,-480.0,0.00023561,2]
[381608657,1756295504903,-480.0,0.00023561,2]
[381608658,1756295504913,-1143.26,0.00023561,2]
[381608659,1756295504922,-698.99,0.00023561,2]
[381608660,1756295504934,-606.55,0.00023561,2]
[381608661,1756295504945,-480.0,0.00023561,2]
[381608662,1756295504954,-755.57,0.00023561,2]
[381608663,1756295504963,-740.17,0.00023561,2]
[381608664,1756295504971,-480.0,0.00023561,2]
[381608665,1756295504981,-839.06,0.00023561,2]
[381608666,1756295504990,-558.04,0.00023561,2]
[381608667,1756295504999,-480.0,0.00023561,2]
[381608668,1756295505009,-480.0,0.00023561,2]
[381608669,1756295505021,-480.0,0.00023561,2]
[381608670,1756295505032,-576.43,0.00023561,2]
[381608671,1756295505041,-480.0,0.00023561,2]
[381608672,1756295505051,-527.26,0.00023561,2]
[381608673,1756295505060,-564.31,0.00023561,2]
[381608674,1756295505069,-525.48,0.00023561,2]
[381608675,1756295505078,-480.0,0.00023561,2]
[381608676,1756295505087,-480.0,0.00023561,2]
[381608677,1756295505096,-480.0,0.00023561,2]
[381608678,1756295505106,-706.22,0.00023561,2]
[381608679,1756295505114,-480.0,0.00023561,2]
[381608680,1756295505124,-480.0,0.00023561,2]
[381608681,1756295505133,-550.82,0.00023561,2]
[381608682,1756295505142,-926.56,0.00023561,2]
[381608683,1756295505151,-924.56,0.00023561,2]
[381608684,1756295505161,-480.0,0.00023561,2]
[381608685,1756295505171,-480.0,0.00023561,2]
[381608686,1756295505180,-625.16,0.00023561,2]
[381608687,1756295505189,-480.0,0.00023561,2]
[381608688,1756295505199,-480.0,0.00023561,2]
[381608689,1756295505208,-480.0,0.00023561,2]
[381608690,1756295505217,-480.0,0.00023561,2]
[381608691,1756295505226,-613.93,0.00023561,2]
[381608692,1756295505235,-480.0,0.00023561,2]
[381608693,1756295505244,-480.0,0.00023561,2]
[381608694,1756295505253,-480.0,0.00023561,2]
[381608695,1756295505263,-480.0,0.00023561,2]
[381608696,1756295505272,-231.22748464,0.00023561,2]
[381608697,1756295505282,-732.55,0.00023561,2]
[381608698,1756295505291,-480.0,0.00023561,2]
[381608699,1756295505300,-480.0,0.00023561,2]
[381608700,1756295505309,-480.0,0.00023561,2]
[381608701,1756295505319,-500.56,0.00023561,2]
[381608702,1756295505329,-480.0,0.00023561,2]
[381608703,1756295505338,-502.03,0.00023561,2]
[381608704,1756295505348,-9670.89,0.00023561,2]
[381608705,1756295505357,-513.59,0.00023561,2]
[381608706,1756295505367,-480.0,0.00023561,2]
[381608707,1756295505376,-524.29,0.00023561,2]
[381608708,1756295505386,-1383.3,0.00023561,2]
[381608709,1756295505395,-480.0,0.00023561,2]
[381608710,1756295505404,-500.0,0.00023561,2]
[381608711,1756295505414,-480.0,0.00023561,2]
[381608712,1756295505423,-655.08,0.00023561,2]
[381608713,1756295505432,-480.0,0.00023561,2]
[381608714,1756295505441,-480.0,0.00023561,2]
[381608715,1756295505451,-480.0,0.00023561,2]
[381608716,1756295505461,-480.0,0.00023561,2]
[381608717,1756295505470,-480.0,0.00023561,2]
[381608718,1756295505479,-480.0,0.00023561,2]
[381608719,1756295505489,-480.0,0.00023561,2]
[381608720,1756295505498,-665.82,0.00023561,2]
[381608721,1756295505507,-480.0,0.00023561,2]
[381608722,1756295505517,-314.03917448,0.00023561,2]
[381608723,1756295505526,-480.0,0.00023561,2]
[381608724,1756295505536,-480.0,0.00023561,2]
[381608725,1756295505545,-480.0,0.00023561,2]
[381608726,1756295505555,-480.0,0.00023561,2]
[381608727,1756295505564,-737.63,0.00023561,2]
[381608728,1756295505573,-480.0,0.00023561,2]
[381608729,1756295505582,-1275.55,0.00023561,2]
[381608730,1756295505591,-941.67,0.00023561,2]
[381608731,1756295505602,-480.0,0.00023561,2]
[381608732,1756295505611,-527.84,0.00023561,2]
[381608733,1756295505620,-480.0,0.00023561,2]
[381608734,1756295505772,-1377.54,0.00023561,2]
[381608735,1756295505782,-480.0,0.00023561,2]
[381608736,1756295505792,-544.18,0.00023561,2]
[381608737,1756295505801,-2005.67,0.00023561,2]
[381608738,1756295505810,-605.81,0.00023561,2]
[381608739,1756295505820,-480.0,0.00023561,2]
[381608740,1756295505829,-480.0,0.00023561,2]
[381608741,1756295505839,-486.23,0.00023561,2]
[381608742,1756295505849,-480.0,0.00023561,2]
[381608743,1756295505862,-480.0,0.00023561,2]
[381608744,1756295505872,-572.5,0.00023561,2]
[381608745,1756295505881,-1511.66,0.00023561,2]
[381608746,1756295505891,-1734.3,0.00023561,2]
[381608747,1756295505901,-3755.94,0.00023561,2]
[381608749,1756295505910,-480.0,0.00023561,2]
[381608750,1756295505920,-831.34,0.00023561,2]
[381608751,1756295505931,-480.0,0.00023561,2]
[381608753,1756295505940,-480.0,0.00023561,2]
[381608754,1756295505950,-707.25,0.00023561,2]
[381608755,1756295505960,-2885.3,0.00023561,2]
[381608757,1756295505970,-480.0,0.00023561,2]
[381608758,1756295505979,-667.09,0.00023561,2]
[381608759,1756295505988,-442.43814121,0.00023561,2]
[381608760,1756295505997,-480.0,0.00023561,2]
[381608761,1756295506007,-480.0,0.00023561,2]
[381608762,1756295506017,-1275.32,0.00023561,2]
[381608764,1756295506026,-480.0,0.00023561,2]
[381608765,1756295506035,-562.26,0.00023561,2]
[381608766,1756295506045,-489.14,0.00023561,2]
[381608767,1756295506055,-3844.16,0.00023561,2]
[381608768,1756295506064,-480.0,0.00023561,2]
[381608769,1756295506073,-1682.7,0.00023561,2]
[381608770,1756295506083,-1992.53,0.00023561,2]
[381608771,1756295506092,-480.0,0.00023561,2]
[381608772,1756295506102,-480.0,0.00023561,2]
[381608773,1756295506111,-1281.38,0.00023561,2]
[381608774,1756295506120,-480.0,0.00023561,2]
[381608775,1756295506129,-480.0,0.00023561,2]
[381608776,1756295506138,-480.0,0.00023561,2]
[381608777,1756295506148,-833.25,0.00023561,2]
[381608778,1756295506157,-480.0,0.00023561,2]
[381608779,1756295506167,-480.0,0.00023561,2]
[381608780,1756295506176,-480.0,0.00023561,2]
[381608781,1756295506186,-480.0,0.00023561,2]
[381608782,1756295506195,-480.0,0.00023561,2]
[381608783,1756295506204,-480.0,0.00023561,2]
[381608784,1756295506213,-480.0,0.00023561,2]
[381608785,1756295506223,-480.0,0.00023561,2]
[381608786,1756295506236,-598.54627787,0.00023561,2]
[381608787,1756295506245,-480.0,0.00023561,2]
[381608788,1756295506254,-480.0,0.00023561,2]
[381608789,1756295506264,-480.0,0.00023561,2]
[381608790,1756295506273,-480.0,0.00023561,2]
[381608791,1756295506283,-480.0,0.00023561,2]
[381608792,1756295506292,-824.64,0.00023561,2]
[381608793,1756295506302,-1267.55,0.00023561,2]
[381608794,1756295506311,-934.3,0.00023561,2]
[381608795,1756295506321,-1138.38,0.00023561,2]
[381608796,1756295506330,-495.31,0.00023561,2]
[381608797,1756295506340,-480.0,0.00023561,2]
[381608798,1756295506350,-480.0,0.00023561,2]
[381608799,1756295506359,-480.0,0.00023561,2]
[381608800,1756295506370,-776.73,0.00023561,2]
[381608801,1756295506379,-480.0,0.00023561,2]
[381608802,1756295506388,-480.0,0.00023561,2]
[381608803,1756295506397,-480.0,0.00023561,2]
[381608804,1756295506407,-480.0,0.00023561,2]
[381608805,1756295506416,-480.0,0.00023561,2]
[381608806,1756295506425,-557.28,0.00023561,2]
[381608807,1756295506435,-535.56,0.00023561,2]
[381608808,1756295506444,-200.04,0.00023561,2]
[381608809,1756295506454,-200.04,0.00023561,2]
[381608810,1756295506464,-200.04,0.00023561,2]
[381608811,1756295506474,-200.04,0.00023561,2]
[381608812,1756295506483,-200.04,0.00023561,2]
[381608813,1756295506492,-200.04,0.00023561,2]
[381608814,1756295506502,-200.04,0.00023561,2]
[381608815,1756295506511,-480.0,0.00023561,2]
[381608816,1756295506520,-639.28,0.00023561,2]
[381608817,1756295506530,-480.0,0.00023561,2]
[381608818,1756295506540,-480.0,0.00023561,2]
[381608819,1756295506550,-480.0,0.00023561,2]
[381608820,1756295506560,-1717.2,0.00023561,2]
[381608821,1756295506570,-480.0,0.00023561,2]
[381608822,1756295506579,-2626.17,0.00023561,2]
[381608823,1756295506589,-480.0,0.00023561,2]
[381608824,1756295506598,-932.54,0.00023561,2]
[381608825,1756295506608,-484.63,0.00023561,2]
[381608826,1756295506617,-717.77,0.00023561,2]
[381608827,1756295506627,-1227.94,0.00023561,2]
[381608828,1756295506637,-607.71,0.00023561,2]
[381608829,1756295506647,-480.0,0.00023561,2]
[381608830,1756295506656,-5360.08,0.00023561,2]
[381608831,1756295506665,-636.41,0.00023561,2]
[381608832,1756295506674,-7837.73,0.00023561,2]
[381608833,1756295506684,-480.0,0.00023561,2]
[381608834,1756295506694,-525.03,0.00023561,2]
[381608835,1756295506704,-784.27,0.00023561,2]
[381608836,1756295506713,-974.32,0.00023561,2]
[381608837,1756295506723,-480.0,0.00023561,2]
[381608838,1756295506732,-480.0,0.00023561,2]
[381608839,1756295506742,-480.0,0.00023561,2]
[381608840,1756295506752,-2604.37,0.00023561,2]
[381608841,1756295506762,-480.0,0.00023561,2]
[381608842,1756295506771,-480.0,0.00023561,2]
[381608843,1756295506780,-480.0,0.00023561,2]
[381608844,1756295506790,-480.0,0.00023561,2]
[381608845,1756295506801,-486.44,0.00023561,2]
[381608846,1756295506811,-480.0,0.00023561,2]
[381608847,1756295506821,-1424.05,0.00023561,2]
[381608848,1756295506831,-480.0,0.00023561,2]
[381608849,1756295506841,-480.0,0.00023561,2]
[381608850,1756295506854,-850.03,0.00023561,2]
[381608851,1756295506863,-410.30263306,0.00023561,2]
[381608852,1756295506873,-480.0,0.00023561,2]
[381608853,1756295506883,-480.0,0.00023561,2]
[381608854,1756295506894,-480.0,0.00023561,2]
[381608855,1756295506904,-2434.53,0.00023561,2]
[381608856,1756295506914,-480.0,0.00023561,2]
[381608857,1756295506924,-512.47,0.00023561,2]
[381608858,1756295506932,-480.0,0.00023561,2]
[381608859,1756295506943,-1080.79,0.00023561,2]
[381608860,1756295506952,-753.46,0.00023561,2]
[381608861,1756295506962,-527.3,0.00023561,2]
[381608862,1756295506972,-480.0,0.00023561,2]
[381608863,1756295506981,-480.0,0.00023561,2]
[381608864,1756295506991,-1150.08,0.00023561,2]
[381608865,1756295507001,-480.0,0.00023561,2]
[381608866,1756295507014,-480.0,0.00023561,2]
[381608867,1756295507023,-480.0,0.00023561,2]
[381608868,1756295507034,-480.0,0.00023561,2]
[381608869,1756295507043,-716.6,0.00023561,2]
[381608870,1756295507052,-480.0,0.00023561,2]
[381608871,1756295507062,-480.0,0.00023561,2]
[381608872,1756295507071,-480.0,0.00023561,2]
[381608873,1756295507081,-480.0,0.00023561,2]
[381608874,1756295507091,-480.0,0.00023561,2]
[381608875,1756295507100,-480.0,0.00023561,2]
[381608876,1756295507110,-595.87471224,0.00023561,2]
[381608877,1756295507119,-799.46,0.00023561,2]
[381608878,1756295507128,-528.16,0.00023561,2]
[381608879,1756295507138,-226.84991279,0.00023561,2]
[381608880,1756295507147,-5059.84,0.00023561,2]
[381608881,1756295507156,-518.25,0.00023561,2]
[381608882,1756295507166,-480.0,0.00023561,2]
[381608883,1756295507175,-582.84,0.00023561,2]
[381608884,1756295507185,-556.45,0.00023561,2]
[381608885,1756295507194,-1272.66,0.00023561,2]
[381608886,1756295507203,-684.68,0.00023561,2]
[381608887,1756295507212,-480.0,0.00023561,2]
[381608888,1756295507222,-480.0,0.00023561,2]
[381608889,1756295507232,-1285.15167977,0.00023612,2]
[381608890,1756295507240,-2334.21974476,0.00023612,2]
[381608891,1756295507251,-462.79616069,0.00023612,2]
[381608892,1756295507260,-3000.0,0.00023612,2]
[381608893,1756295507269,-2000.0,0.00023616,2]
[381608894,1756295507278,-2005.47448285,0.00023616,2]
[381608895,1756295507288,-2000.0,0.00023616,2]
[381608896,1756295507297,-2000.0,0.00023616,2]
[381608897,1756295507306,-1008.32274485,0.00023616,2]
[381608898,1756295507315,-5888.0,0.00023743,2]
[381608899,1756295507324,-973.0,0.00023814,2]
[381608900,1756295507334,-2000.0,0.00023816,2]
[381608901,1756295507343,-2000.0,0.00023816,2]
[381608902,1756295507353,-450.0,0.00023816,2]
[381608903,1756295507362,-979.24514191,0.00023816,2]
[381608904,1756295507371,-728.82,0.00023835,2]
[381608905,1756295507380,-1786.79,0.00023835,2]
[381608906,1756295507390,-480.0,0.00023835,2]
[381608907,1756295507399,-480.0,0.00023835,2]
[381608908,1756295507409,-480.0,0.00023835,2]
[381608909,1756295507418,-2132.63,0.00023835,2]
[381608910,1756295507428,-567.43,0.00023835,2]
[381608911,1756295507437,-480.0,0.00023835,2]
[381608912,1756295507446,-480.0,0.00023835,2]
[381608913,1756295507456,-480.0,0.00023835,2]
[381608914,1756295507465,-480.0,0.00023835,2]
[381608915,1756295507474,-599.6,0.00023835,2]
[381608916,1756295507484,-179.68808794,0.00023835,2]
[381608917,1756295507493,-480.0,0.00023835,2]
[381608918,1756295507502,-480.0,0.00023835,2]
[381608919,1756295507511,-555.01,0.00023835,2]
[381608920,1756295507520,-588.57571707,0.00023835,2]
[381608921,1756295507530,-480.0,0.00023835,2]
[381608922,1756295507539,-480.0,0.00023835,2]
[381608923,1756295507548,-401.20508584,0.00023835,2]
[381608924,1756295507557,-480.0,0.00023835,2]
[381608925,1756295507567,-608.26,0.00023835,2]
[381608926,1756295507576,-480.0,0.00023835,2]
[381608927,1756295507585,-788.63,0.00023835,2]
[381608928,1756295507595,-733.12,0.00023835,2]
[381608929,1756295507604,-491.85,0.00023835,2]
[381608930,1756295507613,-523.6,0.00023835,2]
[381608931,1756295507623,-4246.52,0.00023835,2]
[381608932,1756295507632,-598.52,0.00023835,2]
[381608933,1756295507641,-972.86,0.00023835,2]
[381608934,1756295507651,-568.62,0.00023835,2]
[381608935,1756295507660,-185.49870134,0.00023835,2]
[381608936,1756295507669,-480.0,0.00023835,2]
[381608937,1756295507678,-480.0,0.00023835,2]
[381608938,1756295507687,-480.0,0.00023835,2]
[381608939,1756295507697,-573.08,0.00023835,2]
[381608940,1756295507707,-543.52,0.00023835,2]
[381608941,1756295507715,-506.41,0.00023835,2]
[381608942,1756295507725,-480.0,0.00023835,2]
[381608943,1756295507734,-556.45,0.00023835,2]
[381608944,1756295507744,-480.0,0.00023835,2]
[381608945,1756295507753,-501.31053121,0.00023835,2]
[381608946,1756295507763,-480.0,0.00023835,2]
[381608947,1756295507772,-480.0,0.00023835,2]
[381608948,1756295507781,-743.34,0.00023835,2]
[381608949,1756295507790,-480.0,0.00023835,2]
[381608950,1756295507799,-614.77,0.00023835,2]
[381608951,1756295507808,-480.0,0.00023835,2]
[381608952,1756295507817,-480.0,0.00023835,2]
[381608953,1756295507827,-480.0,0.00023835,2]
[381608954,1756295507838,-480.0,0.00023835,2]
[381608955,1756295507847,-234.40213532,0.00023835,2]
[381608956,1756295507859,-1174.5,0.00023835,2]
[381608957,1756295507869,-480.0,0.00023835,2]
[381608958,1756295507878,-480.0,0.00023835,2]
[381608959,1756295507887,-480.0,0.00023835,2]
[381608960,1756295507898,-480.0,0.00023835,2]
[381608961,1756295507907,-480.0,0.00023835,2]
[381608962,1756295507916,-480.0,0.00023835,2]
[381608963,1756295507925,-824.65,0.00023835,2]
[381608964,1756295507935,-480.0,0.00023835,2]
[381608965,1756295507945,-480.0,0.00023835,2]
[381608966,1756295507955,-897.27,0.00023835,2]
[381608967,1756295507964,-771.07,0.00023835,2]
[381608968,1756295507974,-480.0,0.00023835,2]
[381608969,1756295507983,-480.0,0.00023835,2]
[381608970,1756295507992,-480.0,0.00023835,2]
[381608971,1756295508001,-504.69,0.00023835,2]
[381608972,1756295508010,-1094.25,0.00023835,2]
[381608973,1756295508020,-480.0,0.00023835,2]
[381608974,1756295508029,-480.0,0.00023835,2]
[381608975,1756295508038,-480.0,0.00023835,2]
[381608976,1756295508047,-480.0,0.00023835,2]
[381608977,1756295508057,-1176.51,0.00023835,2]
[381608978,1756295508067,-833.03,0.00023835,2]
[381608979,1756295508076,-480.0,0.00023835,2]
[381608980,1756295508085,-483.29,0.00023835,2]
[381608981,1756295508095,-480.0,0.00023835,2]
[381608982,1756295508104,-650.46,0.00023835,2]
[381608983,1756295508113,-536.02,0.00023835,2]
[381608984,1756295508124,-480.0,0.00023835,2]
[381608985,1756295508134,-2316.32,0.00023835,2]
[381608986,1756295508144,-445.13515415,0.00023835,2]
[381608987,1756295508153,-480.0,0.00023835,2]
[381608988,1756295508163,-633.07,0.00023835,2]
[381608989,1756295508174,-480.0,0.00023835,2]
[381608990,1756295508184,-480.0,0.00023835,2]
[381608991,1756295508194,-480.0,0.00023835,2]
[381608992,1756295508205,-480.0,0.00023835,2]
[381608993,1756295508214,-692.43,0.00023835,2]
[381608994,1756295508224,-617.59,0.00023835,2]